Cogmind - Beta 17 @@@ ROGUE MODE // 2026.08.16 @ 17:23:03 Player: ATOM Result: Destroyed by G-47 Trooper with Particle Gun Performance ------------- Evolutions (2) 1000 Regions Visited (5) 1000 Robots Destroyed (74) 370 Value Destroyed (1791) 1791 Prototype IDs (7) 140 Alien Tech Used (0) 0 Bonus (0) 0 TOTAL SCORE: 4301 Bonus ------- None Cogmind --------- Core Integrity 0/550 Matter 218/300 Energy 79/100 System Corruption 0% Temperature Cool (9) Movement Core (350) Ox6 Location -8/Materials Parts ------- > --- POWER (2) -------- (None) > --- PROPULSION (3) --- (None) > --- UTILITY (4) ------ Large Storage Unit > --- WEAPON (2) ------- (None) > --- INVENTORY (15) --- Light Treads Improved Heat Sink High-capacity Storage Unit Advanced Visual Processing Unit Sensor Array Improved Terrain Scanner ECM Suite Hacking Suite Peak State ------------ > --- POWER ------------ Improved Ion Engine Light Nuclear Core > --- PROPULSION ------- Wheel Wheel Wheel > --- UTILITY ---------- Improved Heat Sink Large Storage Unit Hardened Medium Armor Plating Shield Generator > --- WEAPON ----------- Improved Light Cannon Rocket Launcher > --- INVENTORY -------- Light Ion Engine Light Treads High-capacity Storage Unit Advanced Visual Processing Unit Sensor Array Improved Terrain Scanner ECM Suite Medium Armor Plating Hardlight Generator Hacking Suite Light EM Pulse Cannon Autogun High-powered Shotgun Rocket Launcher [Rating: 23] Favorites ----------- Power Light Ion Engine Engine Light Ion Engine Power Core Light Nuclear Core Propulsion Light Treads Treads Light Treads Wheel Wheel Utility Large Storage Unit Device Sensor Array Storage Large Storage Unit Protection Medium Armor Plating Weapon Autogun Energy Gun EM Pulse Gun Energy Cannon Light EM Pulse Cannon Ballistic Gun Autogun Ballistic Cannon Improved Light Cannon Launcher Rocket Launcher Build | -11 -10 -10 -9 -9 -8 ------- Run | Yrd Mat Min Mat Min Mat Slots Evolved 4 | . . . 2 . 2 Power 1 | . . . 1 . . Propulsion 1 | . . . . . 1 Utility 2 | . . . 1 . 1 Weapon . | . . . . . . Parts Attached 52 | 6 5 . 14 5 22 Power 11 | 1 . . 5 1 4 Engine 8 | 1 . . 5 1 1 Core 3 | . . . . . 3 Reactor . | . . . . . . Propulsion 13 | 2 . . 4 2 5 Treads 9 | 2 . . 4 2 1 Leg . | . . . . . . Wheel 4 | . . . . . 4 Hover . | . . . . . . Flight . | . . . . . . Utility 15 | 1 2 . 4 2 6 Device 6 | . 1 . 1 1 3 Storage 3 | 1 1 . . . 1 Processor . | . . . . . . Hackware . | . . . . . . Protection 6 | . . . 3 1 2 Artifact . | . . . . . . Weapon 13 | 2 3 . 1 . 7 Energy Gun 4 | 2 . . . . 2 Energy Cannon 2 | . 1 . . . 1 Ballistic Gun 3 | . 2 . . . 1 Ballistic Cannon 2 | . . . 1 . 1 Launcher 2 | . . . . . 2 Special Weapon . | . . . . . . Impact Weapon . | . . . . . . Slashing Weapon . | . . . . . . Piercing Weapon . | . . . . . . Special Melee Weapon . | . . . . . . Unidentified Prototypes 1 | . . . . . 1 Parts Lost 27 | . 1 . 1 . 25 Power 6 | . . . . . 6 Propulsion 6 | . . . . . 6 Utility 5 | . . . . . 5 Weapon 10 | . 1 . 1 . 8 Highest Loss Streak 14 | . 1 . 1 . 14 To Critical Strikes 1 | . . . 1 . . Average Backups 11 | 2 6 9 12 14 11 Power 1 | . 1 2 1 1 . Propulsion 1 | 1 2 2 2 1 . Utility 5 | . . 2 5 7 7 Weapon 2 | . 2 3 2 4 3 Tool/Special . | . . . . . . Unused Backups 7 | . . . 4 . 3 Power . | . . . . . . Propulsion 3 | . . . 3 . . Utility 3 | . . . . . 3 Weapon 1 | . . . 1 . . Tool/Special . | . . . . . . Average Slot Usage (%) 97 | . 95 100 99 100 88 Engine 18 | . 14 14 21 22 13 Treads 22 | . 27 28 22 22 15 Device 12 | . 12 14 11 11 19 Storage 11 | . 14 14 11 11 9 Protection 7 | . . . 10 11 6 Energy Gun 2 | . 6 . 3 . 1 Energy Cannon 2 | . 9 14 . . 1 Ballistic Gun 10 | . 10 14 10 11 5 Ballistic Cannon 6 | . . . 7 11 6 Peak Build Rating 23 | 6 10 10 14 15 23 Average Rating 12 | 4 8 10 13 14 18 On Entrance 9 | . 6 10 10 14 15 Avg Prop Armor Cover (%) 7 | . . . . . 7 Naked Turns . | . . . . . . Heaviest Build 51 | 12 32 32 41 45 51 Greatest Support 60 | 40 40 40 40 40 60 Greatest Overweight (x) 14 | . 1 . 1 1 14 Average Overweight (x) . | . . . . 1 1 Largest Inventory Capacity 20 | 8 15 15 15 15 20 Average Capacity 14 | 7 12 15 15 15 15 Most Carried 15 | 5 9 13 15 15 15 Average Carried 12 | 2 6 9 14 14 11 Final Capacity 15 | 8 15 15 15 15 15 Final Carried 15 | 3 9 13 15 14 8 Class Distribution -------------------- 88% | Mutant 11% | Scavenger-Mutant Dominant Class ---------------- Mutant | -10/Materials Mutant | -10/Mines Mutant | -9/Materials Mutant | -9/Mines Scavenger-Mutant | -8/Materials Resources | -11 -10 -10 -9 -9 -8 ----------- Run | Yrd Mat Min Mat Min Mat Matter Collected 1810 | 244 161 48 539 288 530 Remotely . | . . . . . . Salvage Created 1804 | . 320 81 631 175 597 Parts 141 | . 23 8 59 12 39 Haulers Intercepted . | . . . . . . Recyclers Shooed 1 | . . . . . 1 Parts Field Recycled . | . . . . . . Retrieved Matter . | . . . . . . Parts Self-Destructed . | . . . . . . Prevented . | . . . . . . Parts Restored . | . . . . . . Kills | -11 -10 -10 -9 -9 -8 ------- Run | Yrd Mat Min Mat Min Mat Combat Hostiles Destroyed 51 | . 6 5 19 8 13 Guns 26 | . 3 4 14 2 3 Cannons 22 | . 3 1 3 6 9 AOE 3 | . . . 2 . 1 Classes Destroyed 11 | . 5 . 3 . 3 Worker 4 | . 1 . 1 . 2 Builder 6 | . 1 . . . 5 Tunneler 1 | . . . 1 . . Recycler 1 | . . . . . 1 Mechanic 1 | . . . . . 1 Operator 1 | . . . 1 . . Watcher 9 | . 3 . 5 . 1 Swarmer 21 | . 3 5 11 2 . Grunt 23 | . 3 . 4 5 11 Sentry 6 | . . . 4 1 1 Hunter 1 | . . . . . 1 Best Kill Streak 8 | . 4 3 6 2 8 Combat Bots Only 5 | . 3 3 5 2 4 Max Kills in Single Turn 2 | . 1 1 2 1 2 Gunslinging . | . . . . . . Exploded 1 | . . . 1 . 1 Melee . | . . . . . . Uniques/NPCs Destroyed . | . . . . . . Combat | -11 -10 -10 -9 -9 -8 -------- Run | Yrd Mat Min Mat Min Mat Hostile Shots Fired 442 | . 40 20 85 62 235 Missed 127 | . 14 4 19 15 75 Hits 315 | . 26 16 66 47 160 Projectile 315 | . 26 16 66 47 160 Critical Strikes 14 | . 1 1 3 . 9 Damage Taken 4049 | . 296 124 677 557 2395 Core 768 | . 64 9 70 70 555 Absorbed by Shields 430 | . . . . . 430 Regen/Repaired (Parts) 204 | . 87 . 117 . . Core Remaining (%) 78 | 100 . 70 . 65 . Volleys Fired 208 | . 29 12 62 42 63 Largest 2 | . 2 2 2 2 2 Hottest 90 | . 80 79 63 56 90 Shots Fired 357 | . 50 19 120 65 103 Gun 207 | . 39 12 91 26 39 Cannon 132 | . 11 7 29 39 46 Launcher 18 | . . . . . 18 Special . | . . . . . . Kinetic 242 | . 14 12 91 65 60 Thermal 15 | . . . . . 15 Explosive 18 | . . . . . 18 Electromagnetic 82 | . 36 7 29 . 10 Robot Hit Streak 18 | . 6 5 6 8 18 Robot Miss Streak 5 | . 4 3 5 3 4 Penetration Max . | . . . . . . Secondary Targets 3 | . . . 3 . . Max Gunslinging Chain 1 | . . . 1 . . Shots Hit Robots 214 | . 27 10 62 43 72 Core Hits 121 | . 14 5 32 11 59 Critical Kills . | . . . . . . Critical Parts Destroyed . | . . . . . . Critical Strikes 4 | . 1 . 2 1 . Blast 3 | . . . 2 1 . Corrupt 1 | . 1 . . . . Melee Attacks . | . . . . . . Impact . | . . . . . . Slashing . | . . . . . . Piercing . | . . . . . . Sneak Attacks . | . . . . . . Combat Hostiles . | . . . . . . Follow-up Attacks . | . . . . . . Damage Inflicted 5057 | . 497 159 1158 793 2450 Guns 1957 | . 296 101 714 259 587 Cannons 1874 | . 141 58 365 534 776 Explosions 1224 | . 60 . 79 . 1085 Melee . | . . . . . . Ramming 2 | . . . . . 2 Kinetic 2791 | . 84 101 830 793 983 Thermal 327 | . 60 . 79 . 188 Explosive 1085 | . . . . . 1085 Electromagnetic 852 | . 353 58 249 . 192 Impact . | . . . . . . Slashing . | . . . . . . Piercing . | . . . . . . Highest Corruption 4 | . 4 4 . . . Average Corruption 3 | . 3 4 . . . Corruption Purged . | . . . . . . Corruption Blocked . | . . . . . . Effects 23 | . 19 4 . . . Message Errors 5 | . 3 2 . . . Matter Fused 3 | . 3 . . . . Heat Flow Errors 7 | . 7 . . . . Energy Discharges 1 | . 1 . . . . Data Loss (minor) 2 | . . 2 . . . Data Loss (major) 2 | . 2 . . . . Misfires 3 | . 3 . . . . Overload Shots . | . . . . . . Overflow Damage 96 | . . . 40 4 52 Projectiles 44 | . . . 40 4 . Explosions 52 | . . . . . 52 Melee . | . . . . . . Knockbacks 16 | . . . 4 5 7 Impact . | . . . . . . Kinetic 15 | . . . 4 4 7 Secondary 1 | . . . . 1 . Self-Inflicted Damage 83 | . . . . . 83 Shots 2 | . . . . . 2 Rammed 3 | . . . . . 3 Targets Rammed 3 | . . . . . 3 Kicked . | . . . . . . Crushed . | . . . . . . Highest Temperature 353 | . 238 112 135 353 95 Average Temperature 66 | . 67 39 41 157 22 Received Heat Transfer 1476 | . 135 . 153 258 930 Effects 4 | . . . . 4 . Shutdowns 3 | . . . . 3 . Energy Bleed 1 | . . . . 1 . Siege Activations . | . . . . . . Martial Activations . | . . . . . . Shielding Activations . | . . . . . . Robots Disrupted . | . . . . . . Combat Hostiles . | . . . . . . Robots Corrupted . | . . . . . . Combat Hostiles . | . . . . . . Parts Fried 1 | . . . . . 1 Impact Corruptions . | . . . . . . Robots Melted . | . . . . . . Combat Hostiles . | . . . . . . Parts Melted 1 | . . . 1 . . Heat Transferred 594 | . 50 . 100 . 444 Parts Sabotaged . | . . . . . . Parts Stolen . | . . . . . . Parts Stripped . | . . . . . . Power Chain Reactions 3 | . 1 . 2 . . Alert | -11 -10 -10 -9 -9 -8 ------- Run | Yrd Mat Min Mat Min Mat Maximum Alert Level 1 | . . . . . 1 Low Security (%) 99 | 100 100 100 100 100 90 Level 1 . | . . . . . 9 Level 2 . | . . . . . . Level 3 . | . . . . . . Level 4 . | . . . . . . Level 5 . | . . . . . . High Security . | . . . . . . Max Security . | . . . . . . Peak Influence 238 | . 87 86 133 76 238 Initial 13 | . . 6 13 1 13 Average 41 | . 12 60 55 17 98 Influence Increases 1698 | . 238 110 583 210 557 Destroy 0b10 Robot/C 1020 | . 120 100 380 160 260 Destroy 0b10 Robot/NC 115 | . 25 . 40 . 50 Destroy Leader 238 | . 36 10 100 30 62 Successful Hack 37 | . 12 . 20 . 5 Disable Machine 90 | . 45 . 30 . 15 Destroy Structure 108 | . . . 13 5 90 Lose Combat Pursuer 90 | . . . . 15 75 Influence Decreases 1570 | . 221 91 613 182 463 Entered New Map 60 | . . 11 23 5 21 Time Decay 1148 | . 221 80 478 177 192 Lost Part 250 | . . . . . 250 Purge Threat 112 | . . . 112 . . Squads Dispatched 9 | . 1 . 2 1 5 Investigation 4 | . 1 . 1 1 1 Extermination . | . . . . . . Reinforcement 5 | . . . 1 . 4 Assault . | . . . . . . Garrison . | . . . . . . Intercept . | . . . . . . Searches Triggered . | . . . . . . Construction Impeded 2 | . . . . . 2 Haulers Reinforced . | . . . . . . Active Scanning Responses . | . . . . . . Cargo Convoy Interrupts . | . . . . . . Stealth | -11 -10 -10 -9 -9 -8 --------- Run | Yrd Mat Min Mat Min Mat Distress Signals 7 | . 2 . 2 . 3 Communications Jammed . | . . . . . . Distress Signals . | . . . . . . Times Spotted 96 | . 17 7 33 11 28 Peak Tracking Total 8 | . 4 3 5 3 8 Tactical Retreats 11 | . 2 2 1 1 5 ECM-based Alert Blocks 10 | . 3 3 4 . . Traps | -11 -10 -10 -9 -9 -8 ------- Run | Yrd Mat Min Mat Min Mat Traps Triggered 3 | . 3 . . . . Indirectly . | . . . . . . Trap Hack Attempts . | . . . . . . Triggered . | . . . . . . Disarmed . | . . . . . . Reprogrammed 1 | . . . 1 . . Reused . | . . . . . . Traps Extracted . | . . . . . . Installed . | . . . . . . Triggered . | . . . . . . Most Traps Carried 3 | . . 3 3 1 . Machines | -11 -10 -10 -9 -9 -8 ---------- Run | Yrd Mat Min Mat Min Mat Machines Disabled 7 | . 3 . 2 1 1 Max in Single Turn 1 | . 1 . 1 1 1 Machines Repaired . | . . . . . . Machines Dismantled . | . . . . . . Machines Sabotaged . | . . . . . . Overloaded Fab Kills . | . . . . . . Hacking | -11 -10 -10 -9 -9 -8 --------- Run | Yrd Mat Min Mat Min Mat Machines Accessed 23 | . 8 . 13 1 1 Terminals 14 | . 5 . 7 1 1 Fabricators . | . . . . . . Repair Stations 3 | . 1 . 2 . . Recycling Units 4 | . 2 . 2 . . Scanalyzers 2 | . . . 2 . . Garrison Access . | . . . . . . Total Hacks 63 | . 21 . 37 2 3 Successful 39 | . 11 . 26 1 1 Failed 24 | . 10 . 11 1 2 Catastrophic 5 | . 2 . 2 . 1 Database Lockouts . | . . . . . . Manual 1 | . 1 . . . . Terminals 39 | . 14 . 20 2 3 Fabricators . | . . . . . . Repair Stations 13 | . 5 . 8 . . Recycling Units 4 | . 2 . 2 . . Scanalyzers 7 | . . . 7 . . Garrison Access . | . . . . . . Terminal Hacks 17 | . 5 . 10 1 1 Record 3 | . . . 2 1 . Prototype ID Bank 3 | . 1 . 1 . 1 Branch Access Points 1 | . 1 . . . . Emergency Access Points 1 | . 1 . . . . Alert Level 1 | . . . 1 . . Unreport Threat 2 | . . . 2 . . Locate Traps 2 | . 1 . 1 . . Reprogram Traps 1 | . . . 1 . . Zone Layout 3 | . 1 . 2 . . Fabricator Hacks . | . . . . . . Repair Station Hacks 12 | . 4 . 8 . . Scan Component 6 | . 2 . 4 . . Repair 6 | . 2 . 4 . . Recycling Unit Hacks 4 | . 2 . 2 . . Report Inventory 4 | . 2 . 2 . . Scanalyzer 6 | . . . 6 . . Insert Component 2 | . . . 2 . . Analyze 2 | . . . 2 . . Retrieve Study 2 | . . . 2 . . Garrison Access Hacks . | . . . . . . Unauthorized Hacks . | . . . . . . Terminals . | . . . . . . Fabricators . | . . . . . . Repair Stations . | . . . . . . Recycling Units . | . . . . . . Scanalyzers . | . . . . . . Garrison Access . | . . . . . . Data Cores Recovered . | . . . . . . Used . | . . . . . . Hacking Detections 16 | . 5 . 9 1 1 Full Trace Events 9 | . 3 . 4 1 1 Feedback Events . | . . . . . . Feedback Blocked . | . . . . . . Robot Schematics Acquired . | . . . . . . Robots Built . | . . . . . . Authchips . | . . . . . . Time . | . . . . . . Total Robot Build Rating . | . . . . . . Part Schematics Acquired 1 | . . . 1 . . Parts Built . | . . . . . . Authchips . | . . . . . . Time . | . . . . . . Total Part Build Rating . | . . . . . . Part Studies Acquired 2 | . . . 2 . . Parts Repaired 6 | . 2 . 4 . . Time 162 | . 52 . 110 . . Parts Recycled . | . . . . . . Recycled Matter . | . . . . . . Retrieved Matter . | . . . . . . Retrieved Components . | . . . . . . Parts Scanalyzed 2 | . . . 2 . . Part Schematics Acquired 1 | . . . 1 . . Parts Damaged . | . . . . . . Bothacking | -11 -10 -10 -9 -9 -8 ------------ Run | Yrd Mat Min Mat Min Mat Used RIF Installer . | . . . . . . Robots Hacked . | . . . . . . Non-combat . | . . . . . . Combat . | . . . . . . Robot Hacks Applied . | . . . . . . Relay Couplers Released . | . . . . . . Fabnet Peak Effective % . | . . . . . . Robots Rewired . | . . . . . . Allies Hacked . | . . . . . . Hacks Repelled . | . . . . . . Allies | -11 -10 -10 -9 -9 -8 -------- Run | Yrd Mat Min Mat Min Mat Total Allies . | . . . . . . Largest Group . | . . . . . . Highest-Rated Group . | . . . . . . Highest-Rated Ally . | . . . . . . Total Orders . | . . . . . . Ally Attacks . | . . . . . . Total Damage . | . . . . . . Kills . | . . . . . . Allies Corrupted . | . . . . . . Allies Melted . | . . . . . . Intel | -11 -10 -10 -9 -9 -8 ------- Run | Yrd Mat Min Mat Min Mat Active Infowar (turns) 4428 | . 940 179 2071 887 351 Sensors 3309 | . . . 2071 887 351 ECM 1259 | . 940 179 140 . . Robot Analysis Total . | . . . . . . Derelict Logs Recovered 1 | . . . . 1 . Drone Launches . | . . . . . . Drone Recoveries . | . . . . . . Exploration | -11 -10 -10 -9 -9 -8 ------------- Run | Yrd Mat Min Mat Min Mat Turns Passed 5105 | 108 1044 179 2071 1169 534 Spaces Moved 2144 | 60 540 92 860 434 158 Core 8 | 4 . . . . 4 Treads 2088 | 56 540 92 860 434 106 Legs . | . . . . . . Wheels 48 | . . . . . 48 Hover . | . . . . . . Flight . | . . . . . . Fastest Speed 50 | 50 160 160 160 240 95 Average Speed 194 | 152 162 160 203 240 164 Slowest Speed 750 | 160 240 160 240 240 750 Overloaded Moves . | . . . . . . Propulsion Burnouts . | . . . . . . Robots Hopped . | . . . . . . Potential Cave-ins . | . . . . . . Cave-ins Triggered . | . . . . . . Exploration Rate (%) 41 | 5 74 21 61 76 9 Regions Visited 5 Branch Regions 2 Pre-discovered Areas . | . . . . . . Known Exits Taken 1 | . 1 . . . . Unknown Exits Taken 4 | 1 . 1 1 1 . Scrap Searched 3 | . . 1 . 2 . Spaces Dug . | . . . . . . Terrain Destroyed 139 | . . . 9 4 126 Melee . | . . . . . . Projectile 7 | . . . . 4 3 AOE 132 | . . . 9 . 123 Terrain Rammed . | . . . . . . Walls Destroyed . | . . . . . . Machines Disabled . | . . . . . . Actions | -11 -10 -10 -9 -9 -8 --------- Run | Yrd Mat Min Mat Min Mat Total 2747 | 77 662 107 1080 504 317 Wait 242 | 3 75 . 99 17 48 Move 2139 | 59 539 91 859 433 158 Hop . | . . . . . . Pick Up 63 | 9 11 4 24 1 14 Fast Attach 2 | . . . 2 . . Attach 32 | 6 4 . 4 . 18 Detach . | . . . . . . Swap 31 | . 3 . 12 6 10 Drop 27 | . 1 . 18 5 3 Fire 208 | . 29 12 62 42 63 Melee . | . . . . . . Ram 3 | . . . . . 3 Kick . | . . . . . . Crush . | . . . . . . Escape Stasis . | . . . . . . Rewire . | . . . . . . Trap . | . . . . . . Miscellaneous . | . . . . . . Route ------- -11/Scrapyard -10/Materials (discovered 2 exits: *Mat / *Min) -10/Mines -9/Materials (discovered 3 exits: *Mat x2 / *Min) -9/Mines (discovered 2 exits: *Mat x2) -8/Materials (discovered 1 exit: Fac) History --------- Turn | Location | Event 12 | -11/Scrapyard | Discovered new exit (range 15) 109 | -11/Scrapyard | Entered Materials 310 | -10/Materials | Build established: Mutant 644 | -10/Materials | Repaired Lgt. Treads 685 | -10/Materials | Repaired Lgt. Treads 864 | -10/Materials | Discovered new exit (range 14) 985 | -10/Materials | Discovered new exit (range 15) 1025 | -10/Materials | Identified exit to Mines 1153 | -10/Materials | Entered Mines 1169 | -10/Mines | Met a Derelict bent on vengeance 1270 | -10/Mines | Discovered new exit (range 10) 1273 | -10/Mines | Found a hidden stash of uninstalled traps 1332 | -10/Mines | Entered Materials 1332 | -9/Materials | Evolved 2 slots: Power x1, Utility x1 1921 | -9/Materials | Discovered new exit (range 8) 2083 | -9/Materials | Discovered new exit (range 7) 2167 | -9/Materials | Repaired ECM Suite 2516 | -9/Materials | Repaired Grenade Launcher 2549 | -9/Materials | Repaired Autogun+ 2581 | -9/Materials | Repaired Lgt. Ion Engine 2832 | -9/Materials | Discovered new exit (range 16) 3403 | -9/Materials | Entered Mines 3558 | -9/Mines | Learned location of 1 exit from Materials 3671 | -9/Mines | Received a Rocket Launcher from a helpful Derelict 3992 | -9/Mines | Discovered new exit (range 5) 4403 | -9/Mines | Discovered new exit (range 11) 4572 | -9/Mines | Entered Materials 4572 | -8/Materials | Evolved 2 slots: Propulsion x1, Utility x1 4573 | -8/Materials | Identified exit to Factory 4874 | -8/Materials | Build established: Scavenger-Mutant 4908 | -8/Materials | Lost 3 parts (1p2n) 5041 | -8/Materials | Core integrity fell below 50% 5070 | -8/Materials | Lost 14 parts (3p4n2u5w) 5100 | -8/Materials | Core integrity fell below 20% 5106 | -8/Materials | Destroyed by G-47 Trooper with Particle Gun Last Messages --------------- 05085_ Slammed into G-47 Trooper. 05085_ K-01 Serf collects debris. 05086_ Lgt. Nuclear Core destroyed. 05088_ Particle Gun destroyed. 05088_ G-47 Trooper suffers critical hit (Burn). 05088_ G-47 Trooper destroyed. 05088_ K-01 Serf collects debris. 05090_ Hpw. Shotgun destroyed. 05090_ K-01 Serf destroyed. 05092_ Acquired 94 matter. 05095_ K-01 Serf collects debris. 05096_ Critical hit (Burn: +27). 05096_ Hardlight Generator destroyed. 05096_ Slammed into G-47 Trooper. 05098_ G-47 Trooper destroyed. 05099_ K-01 Serf collects debris. 05100_ Acquired 75 matter. 05102_ K-01 Serf collects debris. 05103_ Slammed into G-47 Trooper. 05105_ Imp. Heat Sink destroyed. Map ----- +----------------------------------------------------+ | ?????????????????????????????????????????????????? | | ?????????????????????????????????????????????????? | | ?????????????????????????????????????????????????? | | ?????????????????????????????????????????????????? | | ?????????????????????????????????????????????????? | | ?????????????????????????????????????????????????? | | ?????????????????????????##??????????????????????? | | ????????????????????????#!!!?????????????????????? | | ????????????????????????! ?????????????????????? | | ???????????????????????# ?????????????????????? | | ?????????????????????### #?????????????????????? | | ?????????????????H???# #?????????????????????? | | ????????????????????## #?????????????????????? | | ????????????????????? ###########???????????? | | ?????????????????????# # #???????????? | | ??????????????????###? #] ! [ #???????????? | | ?????????????###### #?# ## #???????????? | | ????????????## ### %## ###?????????? | | ???????????## ## ## #?????????? | | ???????????# # ## #?????????? | | ????????????## # # ] #?????????? | | ???????????### # # % !! #######?????? | | ???????????#%# # #######+##### ##T####### | | ????????????## # %=u u | | ????????????## + xx! | | ????????????## #% @ *%k % | | ???????????## %# g##* ##########+######+## | | ???????????# # |##### # ??# | | ???????????## # ###?## # ?# | | ????????????# "### ###??####### """ # """ | | ????????????#### ####?# ##?????????# """ =#[ """ | | ???????????????# #???## ##?????????# """ # """ | | ???????????????# #????# u ##?????????# # | | ???????????????###????# #??????????############# | | ??????????????????????# #??????????????????????? | | ??????????????????????# #??????????????????????? | | ??????????????????????# #??????????????????????? | | ??????????????????????# #??????????????????????? | | ??????????????????????# a #??????????????????????? | | ??????????????????????# ???????????????????????? | | ??????????????????????? ???????????????????????? | | ?????????????????????????????????????????????????? | | ?????????????????????????????????????????????????? | | ?????????????????????????????????????????????????? | | ?????????????????????????????????????????????????? | | ?????????????????????????????????????????????????? | | ?????????????????????????????????????????????????? | | ?????????????????????????????????????????????????? | | ?????????????????????????????????????????????????? | | ?????????????????????????????????????????????????? | +----------------------------------------------------+ Best States ------------- Heat Dissipation 45 Energy Generation 23 Energy Capacity 325 Matter Stores 300 Matter Capacity 300 Sight Range 16 Robot Scan Range 14 Terrain Scan Density 10 ECM Strength 1 Armor Coverage 225 Evasion (%) 40 Recoil Reduction 3 Item Schematics ----------------- Imp. Light Cannon | -9/Materials | Scanalyzed Robot Schematics ------------------ None Fabricated ------------ Nothing Repaired ---------- Lgt. Treads | 64% | -10/Materials Lgt. Treads | 73% | -10/Materials ECM Suite | 25% | -9/Materials Grenade Launcher | 55% | -9/Materials Autogun | 51% | -9/Materials Lgt. Ion Engine | 52% | -9/Materials Studied --------- Autogun | -9/Materials | Hacked Imp. Light Cannon | -9/Materials | Hacked Alien Tech Used ----------------- None Achievements -------------- None Challenges ------------ None Game ------ Seed HardenedLinearCompressor Manual? 0 Play Time 00:49:56 Cumulative 21.4 hours Start 2026.08.16 @ 16:05:22 End 2026.08.16 @ 17:23:03 Sessions 1 Manual Loads 0 Difficulty Rogue Special Mode None Game No. 34 Rogue 34 Adventurer 0 Explorer 0 Win Type - Total 0 Types 0/0/0/0/0/0/0/0/0/0 Lore% 10 Gallery% 16 Achievement% 15 Wizard Run 0 Options --------- Layout 1 ASCII 0 Keyboard 0 Movement Mouse Keybinds 0 Fullscreen 1 Font 16/SmallcapsGlow Map View 50x40 Zoom Use 0% Tactical HUD 1 Map Filters NONE Filters NONE Steam SD RUN: f7e2e744-e697-4b92-84f9-7ea1932277dc